fUSD/lending_fUSD_20260106
["ID","MTS","AMOUNT","RATE_DAILY","PERIOD"]
[400600472,1767739843032,-505.50693476,0.00032877,7]
[400600474,1767739843043,-505.50693476,0.00032877,7]
[400600476,1767739843053,-505.50693476,0.00032877,7]
[400600478,1767739843062,-505.50693476,0.00032877,7]
[400600480,1767739843072,-505.50693476,0.00032877,7]
[400600482,1767739843081,-750.10852014,0.00032877,7]
[400600484,1767739843091,-750.10852014,0.00032877,7]
[400600487,1767739843101,-750.10852014,0.00032877,7]
[400600488,1767739843111,-750.10852014,0.00032877,7]
[400600491,1767739843123,-750.10852014,0.00032877,7]
[400600493,1767739843133,-750.10852014,0.00032877,7]
[400600495,1767739843142,-750.10852014,0.00032877,7]
[400600497,1767739843151,-750.10852014,0.00032877,7]
[400600499,1767739843160,-750.10852014,0.00032877,7]
[400600501,1767739843169,-750.10852014,0.00032877,7]
[400600503,1767739843178,-750.10852014,0.00032877,7]
[400600505,1767739843187,-750.10852014,0.00032877,7]
[400600507,1767739843196,-750.10852014,0.00032877,7]
[400600509,1767739843205,-750.10852014,0.00032877,7]
[400600511,1767739843214,-750.10852014,0.00032877,7]
[400600513,1767739843224,-750.10852014,0.00032877,7]
[400600515,1767739843238,-750.10852014,0.00032877,7]
[400600517,1767739843247,-750.10852014,0.00032877,7]
[400600519,1767739843256,-750.10852014,0.00032877,7]
[400600521,1767739843266,-750.10852014,0.00032877,7]
[400600523,1767739843275,-750.10852014,0.00032877,7]
[400600525,1767739843284,-750.10852014,0.00032877,7]
[400600527,1767739843294,-750.10852014,0.00032877,7]
[400600529,1767739843303,-750.10852014,0.00032877,7]
[400600531,1767739843313,-750.10852014,0.00032877,7]
[400600533,1767739843321,-750.10852014,0.00032877,7]
[400600535,1767739843331,-750.10852014,0.00032877,7]
[400600537,1767739843340,-750.10852014,0.00032877,7]
[400600539,1767739843350,-750.10852014,0.00032877,7]
[400600541,1767739843359,-750.10852014,0.00032877,7]
[400600543,1767739843368,-750.10852014,0.00032877,7]
[400600545,1767739843377,-750.10852014,0.00032877,7]
[400600547,1767739843387,-750.10852014,0.00032877,7]
[400600549,1767739843396,-750.10852014,0.00032877,7]
[400600551,1767739843404,-750.10852014,0.00032877,7]
[400600553,1767739843414,-750.10852016,0.00032877,7]
[400600555,1767739843423,-750.10852016,0.00032877,7]
[400600559,1767739843445,-750.10852016,0.00032877,7]
[400600562,1767739843463,-1374.33826403,0.00032877,120]
[400600565,1767739843482,-200.0,0.00032877,2]
[400600568,1767739843502,-200.0,0.00032877,2]
[400600570,1767739843517,-1163.55,0.000329,14]
[400600573,1767739843535,-1115.9,0.000329,14]
[400600577,1767739843556,-5532.0,0.000329,5]
[400600580,1767739843573,-200.0,0.00033,2]
[400600582,1767739843591,-208.2,0.00033,2]
[400600586,1767739843611,-2823.5,0.0003309,3]
[400600588,1767739843630,-200.0,0.00033206,2]
[400600591,1767739843643,-200.0,0.00033206,2]
[400600594,1767739843661,-200.0,0.0003333,2]
[400600596,1767739843675,-304.13144408,0.00033367,3]
[400600599,1767739843692,-1040.62,0.000335,30]
[400600602,1767739843707,-160.0,0.000335,4]
[400600605,1767739843724,-281.0,0.00033534,120]
[400600607,1767739843739,-200.0,0.00033538,2]
[400600610,1767739843754,-200.0,0.00033538,2]
[400600613,1767739843771,-197.0,0.00033629,120]
[400600616,1767739843792,-169.0,0.00033641,120]
[400600619,1767739843807,-200.0,0.00033663,2]
[400600621,1767739843821,-5077.93,0.000337,14]
[400600624,1767739843837,-200.0,0.00033873,2]
[400600627,1767739843851,-500.0,0.00033903,30]
[400600629,1767739843866,-502.0,0.00033941,6]
[400600632,1767739843880,-200.0,0.00034,2]
[400600635,1767739843897,-160.0,0.00034,6]
[400600637,1767739843912,-208.2,0.00034,6]
[400600640,1767739843926,-929.86010204,0.00034055,2]
[400600642,1767739843940,-530.0,0.00034055,2]
[400600645,1767739843956,-1115.9,0.000341,14]
[400600648,1767739843973,-157.50335283,0.00034164,2]
[400600650,1767739843988,-200.0,0.00034212,2]
[400600653,1767739844002,-194.72792766,0.00034246,2]
[400600655,1767739844018,-200.0,0.0003434,2]
[400600658,1767739844033,-158.13,0.0003438,2]
[400600661,1767739844049,-160.0,0.000345,9]
[400600663,1767739844065,-160.0,0.000345,9]
[400600666,1767739844080,-13388.20199998,0.00034703,2]
[400600669,1767739844094,-4650.59598728,0.00034703,2]
[400600671,1767739844111,-596.77294064,0.00034839,2]
[400600674,1767739844127,-236.74555436,0.00034841,13]
[400600677,1767739844142,-207.0,0.0003488,30]
[400600679,1767739844157,-3448.92,0.000349,2]
[400600682,1767739844172,-3852.1493451,0.000349,2]
[400600685,1767739844189,-160.0,0.00035,11]
[400600687,1767739844204,-160.0,0.00035,11]
[400600690,1767739844221,-208.2,0.00035,11]
[400600692,1767739844237,-2823.5,0.0003517,4]
[400600695,1767739844252,-281.0,0.0003521,120]
[400600698,1767739844267,-2076.5387,0.0003522,30]
[400600700,1767739844282,-502.0,0.00035295,8]
[400600703,1767739844297,-1163.55,0.000353,14]
[400600706,1767739844312,-1115.9,0.000353,14]
[400600708,1767739844327,-197.0,0.00035311,120]
[400600711,1767739844342,-169.0,0.00035323,120]
[400600714,1767739844357,-109679.09,0.000354,2]
[400600716,1767739844372,-160.0,0.000355,13]
[400600719,1767739844387,-160.0,0.000355,13]
[400600721,1767739844401,-502.0,0.00035589,2]
[400600724,1767739844415,-201.93286099,0.00035615,2]
[400600726,1767739844429,-589.8,0.00035616,103]
[400600729,1767739844444,-735.3,0.00035616,50]
[400600732,1767739844457,-516.0,0.00035616,31]
[400600734,1767739844470,-500.0,0.00035616,7]
[400600737,1767739844485,-500.0,0.00035616,7]
[400600739,1767739844499,-500.0,0.00035616,7]
[400600742,1767739844513,-500.0,0.00035616,7]
[400600744,1767739844527,-500.0,0.00035616,7]
[400600746,1767739844541,-500.0,0.00035616,7]
[400600749,1767739844556,-377.78775089,0.00035616,7]
[400600752,1767739844570,-500.0,0.00035616,7]
[400600754,1767739844586,-500.0,0.00035616,7]
[400600757,1767739844599,-300.0,0.00035616,5]
[400600759,1767739844613,-500.0,0.00035616,7]
[400600762,1767739844629,-500.0,0.00035616,7]
[400600764,1767739844644,-500.0,0.00035616,7]
[400600767,1767739844659,-500.0,0.00035616,7]
[400600770,1767739844673,-500.0,0.00035616,7]
[400600772,1767739844688,-500.0,0.00035616,7]
[400600775,1767739844702,-500.0,0.00035616,7]
[400600777,1767739844716,-500.0,0.00035616,7]
[400600780,1767739844731,-500.0,0.00035616,7]
[400600782,1767739844746,-500.0,0.00035616,7]
[400600785,1767739844760,-547.20195957,0.00035616,7]
[400600788,1767739844775,-500.0,0.00035616,7]
[400600790,1767739844789,-500.0,0.00035616,7]
[400600792,1767739844804,-500.0,0.00035616,7]
[400600795,1767739844818,-500.0,0.00035616,7]
[400600797,1767739844834,-500.0,0.00035616,7]
[400600799,1767739844849,-500.0,0.00035616,7]
[400600802,1767739844864,-500.0,0.00035616,7]
[400600804,1767739844879,-1408.29,0.00035666,42]
[400600807,1767739844894,-159.881,0.00035666,42]
[400600810,1767739844908,-150.38,0.000357,6]
[400600812,1767739844922,-3448.92,0.000357,2]
[400600815,1767739844937,-5077.93,0.000357,14]
[400600817,1767739844952,-173.012936,0.000357,5]
[400600819,1767739844969,-758.4462,0.00035888,30]
[400600822,1767739844984,-1329.0,0.00036011,2]
[400600824,1767739844999,-614.0,0.00036011,2]
[400600827,1767739845014,-1405.0,0.00036011,2]
[400600829,1767739845029,-3490.3,0.00036011,2]
[400600832,1767739845044,-1266.0,0.00036011,2]
[400600835,1767739845059,-435.455,0.00036011,2]
[400600837,1767739845074,-1215.798,0.00036011,2]
[400600840,1767739845089,-914.0,0.00036011,2]
[400600842,1767739845102,-250.0,0.00036011,2]
[400600845,1767739845116,-6549.0,0.00036011,2]
[400600847,1767739845131,-2435.0,0.00036011,2]
[400600850,1767739845150,-4817.0,0.00036011,2]
[400600852,1767739845163,-758.4462,0.00036088,30]
[400600855,1767739845174,-158.13,0.00036099,2]
[400600856,1767739845185,-1040.62,0.000361,30]
[400600879,1767739845532,-758.4462,0.00036288,30]
[400600882,1767739845550,-109679.09,0.000363,2]
[400600884,1767739845559,-600.0,0.00036438,5]
[400600886,1767739845568,-758.4462,0.00036488,30]
[400600887,1767739845577,-637.0411116,0.00036495,30]
[400600889,1767739845587,-160.0,0.000365,17]
[400600891,1767739845597,-160.0,0.000365,17]
[400600893,1767739845606,-160.0,0.000365,17]
[400600895,1767739845616,-578.20924308,0.00036576,2]
[400600897,1767739845626,-151.0,0.00036576,2]
[400600899,1767739845634,-620.0,0.00036576,2]
[400600901,1767739845644,-250.0,0.00036576,2]
[400600903,1767739845653,-500.0,0.00036576,2]
[400600905,1767739845663,-500.0,0.00036576,2]
[400600907,1767739845672,-500.0,0.00036576,2]
[400600909,1767739845682,-500.0,0.00036576,2]
[400600911,1767739845691,-250.0,0.00036576,2]
[400600913,1767739845699,-574.12855637,0.00036576,2]
[400600915,1767739845708,-500.0,0.00036576,2]
[400600917,1767739845717,-500.0,0.00036576,2]
[400600919,1767739845727,-500.0,0.00036576,2]
[400600921,1767739845736,-250.0,0.00036576,2]
[400600923,1767739845745,-500.0,0.00036576,2]
[400600925,1767739845754,-327.01671574,0.00036576,2]
[400600927,1767739845763,-250.0,0.00036576,2]
[400600929,1767739845772,-500.0,0.00036576,2]
[400600931,1767739845782,-500.0,0.00036576,2]
[400600933,1767739845791,-250.0,0.00036576,2]
[400600935,1767739845800,-500.0,0.00036576,2]
[400600936,1767739845810,-250.0,0.00036576,2]
[400600938,1767739845819,-500.0,0.00036576,2]
[400600940,1767739845829,-500.0,0.00036576,2]
[400600942,1767739845839,-500.0,0.00036576,2]
[400600944,1767739845848,-250.0,0.00036576,2]
[400600946,1767739845857,-500.0,0.00036576,2]
[400600948,1767739845866,-500.0,0.00036576,2]
[400600950,1767739845874,-250.0,0.00036576,2]
[400600952,1767739845884,-500.0,0.00036576,2]
[400600954,1767739845892,-500.0,0.00036576,2]
[400600956,1767739845902,-250.0,0.00036576,2]
[400600958,1767739845911,-500.0,0.00036576,2]
[400600960,1767739845921,-500.0,0.00036576,2]
[400600962,1767739845930,-500.0,0.00036576,2]
[400600964,1767739845938,-500.0,0.00036576,2]
[400600966,1767739845947,-250.0,0.00036576,2]
[400600968,1767739845957,-500.0,0.00036576,2]
[400600970,1767739845971,-500.0,0.00036576,2]
[400600972,1767739845990,-500.0,0.00036576,2]
[400600974,1767739846000,-250.0,0.00036576,2]
[400600976,1767739846011,-322.6107,0.00036576,2]
[400600978,1767739846020,-250.0,0.00036576,2]
[400600980,1767739846029,-250.0,0.00036576,2]
[400600982,1767739846040,-209.40437684,0.00036576,2]
[400600984,1767739846049,-250.0,0.00036576,2]
[400600986,1767739846058,-155.75006326,0.00036576,2]
[400600988,1767739846067,-250.0,0.00036576,2]
[400600990,1767739846076,-250.0,0.00036576,2]
[400600992,1767739846086,-250.0,0.00036576,2]
[400600994,1767739846095,-250.0,0.00036576,2]
[400600996,1767739846104,-500.0,0.00036576,2]
[400600998,1767739846113,-250.0,0.00036576,2]
[400601000,1767739846122,-500.0,0.00036576,2]
[400601002,1767739846131,-250.0,0.00036576,2]
[400601004,1767739846141,-500.0,0.00036576,2]
[400601006,1767739846150,-200.0,0.00036576,2]
[400601008,1767739846159,-250.0,0.00036576,2]
[400601010,1767739846169,-500.0,0.00036576,2]
[400601011,1767739846178,-207.4,0.00036576,2]
[400601013,1767739846187,-250.0,0.00036576,2]
[400601015,1767739846196,-500.0,0.00036576,2]
[400601017,1767739846206,-215.0738,0.00036576,2]
[400601019,1767739846215,-250.0,0.00036576,2]
[400601022,1767739846225,-500.0,0.00036576,2]
[400601023,1767739846235,-223.0315306,0.00036576,2]
[400601025,1767739846245,-250.0,0.00036576,2]
[400601027,1767739846254,-500.0,0.00036576,2]
[400601029,1767739846263,-250.0,0.00036576,2]
[400601031,1767739846272,-231.28369723,0.00036576,2]
[400601033,1767739846282,-500.0,0.00036576,2]
[400601035,1767739846291,-500.0,0.00036576,2]
[400601037,1767739846300,-239.84119403,0.00036576,2]
[400601039,1767739846311,-500.0,0.00036576,2]
[400601041,1767739846320,-500.0,0.00036576,2]
[400601043,1767739846330,-248.71531821,0.00036576,2]
[400601046,1767739846339,-500.0,0.00036576,2]
[400601047,1767739846349,-257.91778498,0.00036576,2]
[400601050,1767739846358,-500.0,0.00036576,2]
[400601052,1767739846367,-500.0,0.00036576,2]
[400601053,1767739846377,-500.0,0.00036576,2]
[400601056,1767739846386,-267.46074303,0.00036576,2]
[400601057,1767739846396,-500.0,0.00036576,2]
[400601059,1767739846406,-277.35679052,0.00036576,2]
[400601061,1767739846416,-500.0,0.00036576,2]
[400601064,1767739846425,-500.0,0.00036576,2]
[400601065,1767739846435,-500.0,0.00036576,2]
[400601067,1767739846444,-500.0,0.00036576,2]
[400601069,1767739846453,-500.0,0.00036576,2]
[400601071,1767739846462,-500.0,0.00036576,2]
[400601073,1767739846472,-500.0,0.00036576,2]
[400601075,1767739846481,-500.0,0.00036576,2]
[400601078,1767739846491,-500.0,0.00036576,2]
[400601079,1767739846500,-500.0,0.00036576,2]
[400601081,1767739846509,-500.0,0.00036576,2]
[400601083,1767739846519,-500.0,0.00036576,2]
[400601085,1767739846528,-500.0,0.00036576,2]
[400601087,1767739846538,-500.0,0.00036576,2]
[400601089,1767739846547,-500.0,0.00036576,2]
[400601091,1767739846557,-500.0,0.00036576,2]
[400601093,1767739846567,-500.0,0.00036576,2]
[400601095,1767739846576,-250.0,0.00036576,2]
[400601097,1767739846586,-250.0,0.00036576,2]
[400601099,1767739846595,-250.0,0.00036576,2]
[400601101,1767739846605,-250.0,0.00036576,2]
[400601103,1767739846616,-250.0,0.00036576,2]
[400601105,1767739846626,-250.0,0.00036576,2]
[400601107,1767739846636,-250.0,0.00036576,2]
[400601109,1767739846645,-250.0,0.00036576,2]
[400601111,1767739846655,-250.0,0.00036576,2]
[400601113,1767739846664,-250.0,0.00036576,2]
[400601115,1767739846674,-250.0,0.00036576,2]
[400601117,1767739846683,-502.0,0.0003665,9]
[400601119,1767739846692,-758.4462,0.00036688,30]
[400601121,1767739846702,-758.4462,0.00036888,30]
[400601123,1767739846713,-207.0,0.0003689,30]
[400601125,1767739846723,-1115.9,0.000369,14]
[400601127,1767739846732,-281.0,0.00036971,120]
[400601129,1767739846742,-209.40437684,0.00036984,2]
[400601131,1767739846751,-1163.55,0.00037,14]
[400601133,1767739846761,-1103.76,0.00037,30]
[400601135,1767739846770,-1023.62372196,0.00037,7]
[400601137,1767739846780,-197.0,0.00037076,120]
[400601139,1767739846789,-758.4462,0.00037088,30]
[400601141,1767739846798,-169.0,0.00037089,120]
[400601143,1767739846807,-172.2106957,0.00037124,2]
[400601145,1767739846816,-595.37131296,0.00037124,2]
[400601147,1767739846825,-217.15233878,0.00037124,2]
[400601149,1767739846834,-2823.5,0.0003725,5]
[400601151,1767739846844,-900.0,0.0003726,5]
[400601153,1767739846854,-758.4462,0.00037288,30]
[400601155,1767739846863,-3448.92,0.000373,2]
[400601157,1767739846872,-109679.09,0.000373,2]
[400601159,1767739846881,-758.4462,0.00037488,30]
[400601161,1767739846890,-160.0,0.000375,22]
[400601163,1767739846899,-160.0,0.000375,22]
[400601165,1767739846908,-160.0,0.000375,22]
[400601167,1767739846918,-13388.20199998,0.00037537,2]
[400601169,1767739846928,-4650.59598728,0.00037537,2]
[400601171,1767739846937,-617.40005154,0.00037672,2]
[400601173,1767739846946,-225.18697532,0.00037672,2]
[400601175,1767739846955,-758.4462,0.00037688,30]
[400601177,1767739846965,-158.13,0.00037818,2]
[400601179,1767739846976,-758.4462,0.00037888,30]
[400601181,1767739846985,-5077.93,0.000379,14]
[400601183,1767739846994,-276.76,0.00037942,2]
[400601185,1767739847003,-642.94,0.00037945,2]
[400601187,1767739847012,-334.5472959,0.00037945,2]
[400601189,1767739847022,-287.61899177,0.00037945,2]
[400601191,1767739847032,-160.0,0.00038,24]
[400601193,1767739847043,-160.0,0.00038,24]
[400601195,1767739847053,-160.0,0.00038,24]
[400601197,1767739847062,-160.0,0.00038,24]
[400601199,1767739847071,-160.0,0.00038,24]
[400601201,1767739847081,-208.2,0.00038,24]
[400601203,1767739847090,-1018.0,0.00038,7]
[400601205,1767739847100,-502.0,0.00038005,11]
[400601207,1767739847109,-1200.0,0.00038082,5]
[400601209,1767739847118,-758.4462,0.00038088,30]
[400601211,1767739847127,-1115.9,0.000381,14]
[400601212,1767739847136,-169.38,0.00038144,2]
[400601214,1767739847145,-640.24385345,0.0003822,2]
[400601216,1767739847155,-233.51889341,0.0003822,2]
[400601218,1767739847164,-758.4462,0.00038288,30]
[400601221,1767739847174,-109679.09,0.000383,2]
[400601222,1767739847183,-217.15233878,0.00038353,2]
[400601225,1767739847192,-1000.0,0.00038356,5]
[400601227,1767739847202,-169.38,0.00038399,2]
[400601229,1767739847211,-1040.62,0.000384,30]
[400601231,1767739847221,-758.4462,0.00038488,30]
[400601233,1767739847231,-160.0,0.000385,26]
[400601235,1767739847240,-160.0,0.000385,26]
[400601237,1767739847250,-1163.55,0.000385,14]
[400601239,1767739847259,-3448.92,0.000385,30]
[400601241,1767739847269,-160.0,0.000385,26]
[400601243,1767739847278,-1000.0,0.0003855,7]
[400601245,1767739847288,-1000.0,0.00038585,7]
[400601247,1767739847297,-152.0,0.00038585,3]
[400601249,1767739847307,-1000.0,0.00038635,7]
[400601251,1767739847316,-169.37655114,0.00038655,2]
[400601253,1767739847326,-758.4462,0.00038688,30]
[400601255,1767739847335,-992.86947112,0.00038767,5]
[400601257,1767739847344,-663.93287602,0.00038768,2]
[400601259,1767739847354,-242.15909246,0.00038768,2]
[400601261,1767739847363,-3311.28,0.000388,30]
[400601263,1767739847373,-109679.09,0.000389,2]
[400601265,1767739847381,-1500.0,0.00038904,5]
[400601266,1767739847391,-207.0,0.0003891,30]
[400601268,1767739847401,-169.0,0.00038944,120]
[400601271,1767739847412,-1018.0,0.00039,7]
[400601273,1767739847421,-1329.0,0.00039011,2]
[400601275,1767739847430,-614.0,0.00039011,2]
[400601277,1767739847440,-1405.0,0.00039011,2]
[400601279,1767739847449,-3466.0,0.00039011,2]
[400601281,1767739847460,-1266.0,0.00039011,2]
[400601282,1767739847469,-433.0,0.00039011,2]
[400601284,1767739847478,-914.0,0.00039011,2]
[400601286,1767739847488,-1200.0,0.00039011,2]
[400601288,1767739847498,-150.0,0.00039011,2]
[400601290,1767739847508,-6549.0,0.00039011,2]
[400601292,1767739847518,-2435.0,0.00039011,2]
[400601294,1767739847528,-4817.0,0.00039011,2]
[400601297,1767739847538,-758.4462,0.00039088,30]
[400601299,1767739847548,-596.77294064,0.00039124,2]
[400601301,1767739847558,-1551.65362228,0.00039166,2]
[400601303,1767739847568,-1551.65362228,0.00039166,2]
[400601305,1767739847578,-758.4462,0.00039288,30]
[400601307,1767739847587,-5077.93,0.000393,14]
[400601309,1767739847596,-666.72878,0.00039314,2]
[400601310,1767739847606,-346.92554585,0.00039314,2]
[400601313,1767739847616,-298.26089446,0.00039314,2]
[400601315,1767739847626,-599.60298507,0.00039315,2]
[400601317,1767739847636,-688.49839244,0.00039316,2]
[400601319,1767739847646,-251.11897888,0.00039316,2]
[400601321,1767739847656,-2823.5,0.0003933,6]
[400601323,1767739847665,-502.0,0.00039359,12]
[400601324,1767739847675,-1115.9,0.000394,14]
[400601327,1767739847684,-800.0,0.00039433,13]
[400601328,1767739847694,-800.0,0.00039433,13]
[400601330,1767739847704,-800.0,0.00039433,13]
[400601332,1767739847714,-800.0,0.00039433,13]
[400601335,1767739847723,-800.0,0.00039433,13]
[400601336,1767739847733,-800.0,0.00039433,13]
[400601338,1767739847742,-800.0,0.00039433,13]
[400601340,1767739847752,-800.0,0.00039433,13]
[400601342,1767739847762,-800.0,0.00039433,13]
[400601344,1767739847771,-800.0,0.00039433,13]
[400601346,1767739847781,-800.0,0.00039433,13]
[400601348,1767739847791,-800.0,0.00039433,13]
[400601351,1767739847801,-800.0,0.00039434,13]
[400601353,1767739847810,-800.0,0.00039434,13]
[400601355,1767739847820,-800.0,0.00039434,13]
[400601357,1767739847830,-800.0,0.00039434,13]
[400601359,1767739847839,-800.0,0.00039434,13]
[400601361,1767739847848,-800.0,0.00039434,13]
[400601363,1767739847857,-800.0,0.00039434,13]
[400601364,1767739847866,-800.0,0.00039434,13]
[400601366,1767739847876,-800.0,0.00039434,13]
[400601368,1767739847885,-800.0,0.00039434,13]
[400601370,1767739847894,-800.0,0.00039434,13]
[400601371,1767739847903,-800.0,0.00039434,13]
[400601372,1767739847912,-800.0,0.00039434,13]
[400601373,1767739847920,-800.0,0.00039434,13]
[400601374,1767739847929,-800.0,0.00039434,13]
[400601375,1767739847938,-800.0,0.00039434,13]
[400601376,1767739847947,-800.0,0.00039434,13]
[400601377,1767739847955,-800.0,0.00039434,13]
[400601378,1767739847966,-800.0,0.00039434,13]
[400601379,1767739847977,-800.0,0.00039434,13]
[400601380,1767739847987,-800.0,0.00039434,13]
[400601381,1767739847996,-800.0,0.00039434,13]
[400601383,1767739848006,-800.0,0.00039434,13]
[400601385,1767739848016,-800.0,0.00039434,13]
[400601387,1767739848025,-800.0,0.00039434,13]
[400601389,1767739848034,-800.0,0.00039434,13]
[400601391,1767739848046,-800.0,0.00039434,13]
[400601393,1767739848055,-800.0,0.00039434,13]
[400601395,1767739848064,-800.0,0.00039434,13]
[400601397,1767739848074,-800.0,0.00039434,13]
[400601399,1767739848082,-800.0,0.00039434,13]
[400601401,1767739848092,-800.0,0.00039434,13]
[400601403,1767739848101,-800.0,0.00039434,13]
[400601405,1767739848110,-800.0,0.00039434,13]
[400601407,1767739848119,-800.0,0.00039434,13]
[400601409,1767739848128,-800.0,0.00039434,13]
[400601411,1767739848137,-800.0,0.00039434,13]
[400601413,1767739848147,-800.0,0.00039434,13]
[400601415,1767739848155,-800.0,0.00039434,13]
[400601417,1767739848165,-800.0,0.00039434,13]
[400601419,1767739848174,-800.0,0.00039434,13]
[400601421,1767739848184,-800.0,0.00039434,13]
[400601423,1767739848193,-800.0,0.00039434,13]
[400601442,1767739848203,-800.0,0.00039434,13]
[400601447,1767739848396,-800.0,0.00039434,13]
[400601449,1767739848406,-800.0,0.00039434,13]
[400601451,1767739848415,-800.0,0.00039434,13]
[400601453,1767739848425,-800.0,0.00039434,13]
[400601455,1767739848435,-800.0,0.00039434,13]
[400601457,1767739848445,-800.0,0.00039434,13]
[400601459,1767739848454,-382.0,0.00039434,13]
[400601461,1767739848464,-800.0,0.00039434,13]
[400601463,1767739848475,-800.0,0.00039434,13]
[400601465,1767739848484,-800.0,0.00039434,13]
[400601467,1767739848494,-800.0,0.00039434,13]
[400601469,1767739848504,-800.0,0.00039434,13]
[400601471,1767739848514,-800.0,0.00039434,13]
[400601473,1767739848523,-800.0,0.00039434,13]
[400601475,1767739848533,-800.0,0.00039434,13]
[400601477,1767739848542,-800.0,0.00039434,13]
[400601479,1767739848552,-800.0,0.00039434,13]
[400601481,1767739848561,-800.0,0.00039434,13]
[400601483,1767739848571,-800.0,0.00039434,13]
[400601485,1767739848580,-800.0,0.00039434,13]
[400601487,1767739848589,-251.0,0.00039434,13]
[400601489,1767739848599,-200.0,0.00039434,2]
[400601491,1767739848608,-200.0,0.00039434,2]
[400601493,1767739848617,-200.0,0.00039434,2]
[400601495,1767739848627,-200.0,0.00039434,2]
[400601497,1767739848636,-200.0,0.00039434,2]
[400601499,1767739848645,-200.0,0.00039434,2]
[400601501,1767739848654,-200.0,0.00039434,2]
[400601503,1767739848664,-200.0,0.00039434,2]
[400601505,1767739848674,-200.0,0.00039434,2]
[400601507,1767739848683,-200.0,0.00039434,2]
[400601509,1767739848692,-200.0,0.00039434,2]
[400601511,1767739848702,-200.0,0.00039434,2]
[400601513,1767739848710,-200.0,0.00039434,2]
[400601515,1767739848719,-200.0,0.00039434,2]
[400601517,1767739848729,-200.0,0.00039434,2]
[400601519,1767739848738,-200.0,0.00039434,2]
[400601521,1767739848748,-200.0,0.00039434,2]
[400601523,1767739848757,-200.0,0.00039434,2]
[400601524,1767739848766,-200.0,0.00039434,2]
[400601526,1767739848775,-200.0,0.00039434,2]
[400601528,1767739848784,-200.0,0.00039434,2]
[400601530,1767739848794,-200.0,0.00039434,2]
[400601532,1767739848803,-200.0,0.00039434,2]
[400601534,1767739848812,-200.0,0.00039434,2]
[400601536,1767739848822,-200.0,0.00039434,2]
[400601538,1767739848831,-200.0,0.00039434,2]
[400601540,1767739848843,-200.0,0.00039434,2]
[400601542,1767739848853,-200.0,0.00039434,2]
[400601544,1767739848862,-200.0,0.00039434,2]
[400601546,1767739848871,-200.0,0.00039434,2]
[400601548,1767739848881,-200.0,0.00039434,2]
[400601550,1767739848890,-200.0,0.00039434,2]
[400601553,1767739848900,-200.0,0.00039434,2]
[400601555,1767739848910,-200.0,0.00039434,2]
[400601556,1767739848919,-200.0,0.00039434,2]
[400601559,1767739848928,-200.0,0.00039434,2]
[400601560,1767739848937,-170.0,0.00039434,2]
[400601562,1767739848946,-758.4462,0.00039488,30]
[400601565,1767739848955,-160.0,0.000395,30]
[400601566,1767739848966,-160.0,0.000395,30]
[400601568,1767739848977,-109679.09,0.000395,2]